[Event "Titled Tuesday Blitz March 22 Late 2022"]
[White "Barp, Alberto"]
[Black "Weber, Samuel"]
[WhiteFideId "872555"]
[BlackFideId "12924008"]
[WhiteElo "2229"]
[BlackElo "2215"]
[Result "1-0"]
[Round "06"]
[TimeControl "180+1"]
[Date "2022.03.22"]
[WhiteClock "0:00:44"]
[BlackClock "0:00:09"]

1. d4 {[%clk 0:03:00]}  Nf6 {[%clk 0:02:59]} 2. Bg5 {[%clk 0:03:00]}  d5 {[%clk 0:02:58]} 3. Bxf6 {[%clk 0:02:59]}  gxf6 {[%clk 0:02:58]} 4. c4 {[%clk 0:02:57]}  e6 {[%clk 0:02:52]} 5. e3 {[%clk 0:02:55]}  c5 {[%clk 0:02:42]} 6. cxd5 {[%clk 0:02:53]}  Qxd5 {[%clk 0:02:27]} 7. Nc3 {[%clk 0:02:51]}  Qd8 {[%clk 0:02:27]} 8. Nf3 {[%clk 0:02:47]}  Be7 {[%clk 0:02:24]} 9. d5 {[%clk 0:02:41]}  exd5 {[%clk 0:02:11]} 10. Qxd5 {[%clk 0:02:34]}  Qxd5 {[%clk 0:02:05]} 11. Nxd5 {[%clk 0:02:34]}  Bd8 {[%clk 0:02:05]} 12. Bb5+ {[%clk 0:02:29]}  Bd7 {[%clk 0:01:52]} 13. Bxd7+ {[%clk 0:02:27]}  Nxd7 {[%clk 0:01:53]} 14. Ke2 {[%clk 0:02:25]}  Rg8 {[%clk 0:01:47]} 15. g3 {[%clk 0:02:25]}  Nb6 {[%clk 0:01:34]} 16. Nc3 {[%clk 0:02:21]}  f5 {[%clk 0:01:24]} 17. a4 {[%clk 0:02:20]}  Bf6 {[%clk 0:01:24]} 18. Rhc1 {[%clk 0:02:13]}  Rg4 {[%clk 0:01:00]} 19. a5 {[%clk 0:02:09]}  Nd7 {[%clk 0:01:01]} 20. Rab1 {[%clk 0:01:51]}  Bd8 {[%clk 0:00:52]} 21. a6 {[%clk 0:01:46]}  bxa6 {[%clk 0:00:49]} 22. Nd5 {[%clk 0:01:45]}  Rb8 {[%clk 0:00:49]} 23. b3 {[%clk 0:01:43]}  a5 {[%clk 0:00:48]} 24. h3 {[%clk 0:01:42]}  Re4 {[%clk 0:00:45]} 25. Nd2 {[%clk 0:01:38]}  Re5 {[%clk 0:00:42]} 26. Nc3 {[%clk 0:01:39]}  h5 {[%clk 0:00:33]} 27. Nc4 {[%clk 0:01:36]}  Re6 {[%clk 0:00:34]} 28. h4 {[%clk 0:01:36]}  f4 {[%clk 0:00:20]} 29. gxf4 {[%clk 0:01:33]}  Bxh4 {[%clk 0:00:20]} 30. Rh1 {[%clk 0:01:31]}  Bd8 {[%clk 0:00:19]} 31. Rxh5 {[%clk 0:01:30]}  Bf6 {[%clk 0:00:19]} 32. Nd5 {[%clk 0:01:23]}  Bd8 {[%clk 0:00:17]} 33. f5 {[%clk 0:01:17]}  Rc6 {[%clk 0:00:12]} 34. Rh8+ {[%clk 0:01:10]}  Nf8 {[%clk 0:00:12]} 35. Rg1 {[%clk 0:01:06]}  Bf6 {[%clk 0:00:11]} 36. Rh6 {[%clk 0:00:51]}  Rxb3 {[%clk 0:00:10]} 37. Nxf6+ {[%clk 0:00:49]}  Kd8 {[%clk 0:00:11]} 38. Ne5 {[%clk 0:00:47]}  Rb2+ {[%clk 0:00:10]} 39. Kf3 {[%clk 0:00:46]}  Rcb6 {[%clk 0:00:09]} 40. Rd1+ {[%clk 0:00:44]}  Ke7 {[%clk 0:00:09]} 41. Nd5+ {[%clk 0:00:44]} 1-0


[Site "https://www.chess.com"]

[Event "Titled Tuesday Blitz March 22 Late 2022"]
[White "Borodavkin, Anatoly"]
[Black "Terletsky, Oleg"]
[WhiteFideId "14150662"]
[BlackFideId "14116774"]
[WhiteElo "1845"]
[BlackElo "2064"]
[Result "1/2-1/2"]
[Round "06"]
[TimeControl "180+1"]
[Date "2022.03.22"]
[WhiteClock "0:00:10"]
[BlackClock "0:00:23"]

1. e4 {[%clk 0:03:00]}  e5 {[%clk 0:02:59]} 2. Nf3 {[%clk 0:03:00]}  Nc6 {[%clk 0:02:59]} 3. Bb5 {[%clk 0:03:00]}  a6 {[%clk 0:02:59]} 4. Ba4 {[%clk 0:03:01]}  Nf6 {[%clk 0:02:59]} 5. O-O {[%clk 0:02:59]}  Be7 {[%clk 0:02:59]} 6. d3 {[%clk 0:02:58]}  b5 {[%clk 0:02:59]} 7. Bb3 {[%clk 0:02:58]}  d6 {[%clk 0:02:59]} 8. a4 {[%clk 0:02:58]}  Bg4 {[%clk 0:02:59]} 9. Be3 {[%clk 0:02:57]}  O-O {[%clk 0:02:47]} 10. h3 {[%clk 0:02:34]}  Bd7 {[%clk 0:02:47]} 11. Nc3 {[%clk 0:02:30]}  Na5 {[%clk 0:02:45]} 12. Ba2 {[%clk 0:02:13]}  b4 {[%clk 0:02:38]} 13. Nd5 {[%clk 0:02:05]}  Nxd5 {[%clk 0:02:37]} 14. Bxd5 {[%clk 0:02:04]}  c6 {[%clk 0:02:37]} 15. Ba2 {[%clk 0:02:03]}  c5 {[%clk 0:02:34]} 16. Bd5 {[%clk 0:02:00]}  Rb8 {[%clk 0:02:32]} 17. b3 {[%clk 0:02:00]}  Kh8 {[%clk 0:02:29]} 18. Qd2 {[%clk 0:01:48]}  f5 {[%clk 0:02:27]} 19. exf5 {[%clk 0:01:48]}  Bxf5 {[%clk 0:02:27]} 20. Ng5 {[%clk 0:01:42]}  Bxg5 {[%clk 0:02:20]} 21. Bxg5 {[%clk 0:01:42]}  Qd7 {[%clk 0:02:20]} 22. Qe3 {[%clk 0:01:24]}  Nc6 {[%clk 0:02:17]} 23. Bxc6 {[%clk 0:01:11]}  Qxc6 {[%clk 0:02:17]} 24. f4 {[%clk 0:01:06]}  h6 {[%clk 0:02:12]} 25. Bh4 {[%clk 0:00:52]}  e4 {[%clk 0:01:48]} 26. g4 {[%clk 0:00:42]}  Bh7 {[%clk 0:01:47]} 27. f5 {[%clk 0:00:38]}  exd3 {[%clk 0:01:41]} 28. Qxd3 {[%clk 0:00:31]}  Bg8 {[%clk 0:01:19]} 29. Rae1 {[%clk 0:00:24]}  Bd5 {[%clk 0:00:53]} 30. f6 {[%clk 0:00:23]}  g5 {[%clk 0:00:47]} 31. Re7 {[%clk 0:00:14]}  Bf7 {[%clk 0:00:31]} 32. Bg3 {[%clk 0:00:12]}  Qd5 {[%clk 0:00:26]} 33. Qxd5 {[%clk 0:00:11]}  Bxd5 {[%clk 0:00:27]} 34. Bxd6 {[%clk 0:00:10]}  Rbc8 {[%clk 0:00:25]} 35. Ra7 {[%clk 0:00:08]}  Rf7 {[%clk 0:00:22]} 36. Rxf7 {[%clk 0:00:08]}  Bxf7 {[%clk 0:00:22]} 37. Re1 {[%clk 0:00:08]}  Re8 {[%clk 0:00:20]} 38. Rxe8+ {[%clk 0:00:07]}  Bxe8 {[%clk 0:00:21]} 39. Bxc5 {[%clk 0:00:08]}  Bg6 {[%clk 0:00:20]} 40. Bxb4 {[%clk 0:00:07]}  Bxc2 {[%clk 0:00:20]} 41. Bc3 {[%clk 0:00:06]}  Kg8 {[%clk 0:00:20]} 42. b4 {[%clk 0:00:06]}  Bxa4 {[%clk 0:00:20]} 43. Kf2 {[%clk 0:00:06]}  Kf7 {[%clk 0:00:20]} 44. Kg3 {[%clk 0:00:05]}  Bc6 {[%clk 0:00:20]} 45. h4 {[%clk 0:00:06]}  gxh4+ {[%clk 0:00:19]} 46. Kxh4 {[%clk 0:00:06]}  Bd7 {[%clk 0:00:19]} 47. g5 {[%clk 0:00:06]}  hxg5+ {[%clk 0:00:19]} 48. Kxg5 {[%clk 0:00:07]}  Bb5 {[%clk 0:00:20]} 49. Kf4 {[%clk 0:00:07]}  Bc4 {[%clk 0:00:20]} 50. Ke5 {[%clk 0:00:07]}  Bb5 {[%clk 0:00:21]} 51. Kd6 {[%clk 0:00:08]}  Bf1 {[%clk 0:00:22]} 52. Kc5 {[%clk 0:00:08]}  Be2 {[%clk 0:00:22]} 53. Kb6 {[%clk 0:00:08]}  Bb5 {[%clk 0:00:23]} 54. Kc5 {[%clk 0:00:09]}  Bd3 {[%clk 0:00:23]} 55. Kb6 {[%clk 0:00:09]}  Bb5 {[%clk 0:00:23]} 56. Kc5 {[%clk 0:00:10]}  Bd3 {[%clk 0:00:23]} 57. Kb6 {[%clk 0:00:10]}  Bb5 {[%clk 0:00:23]} 1/2-1/2


[Site "https://www.chess.com"]

[Event "Titled Tuesday Blitz March 22 Late 2022"]
[White "Brahami, Lamine"]
[Black "Dias, Joao Batista"]
[WhiteFideId "7905637"]
[BlackFideId "2108240"]
[WhiteElo "1909"]
[BlackElo "1898"]
[Result "1-0"]
[Round "06"]
[TimeControl "180+1"]
[Date "2022.03.22"]
[WhiteClock "0:01:21"]
[BlackClock "0:01:29"]

1. d4 {[%clk 0:03:00]}  d5 {[%clk 0:02:57]} 2. c4 {[%clk 0:02:58]}  c6 {[%clk 0:02:57]} 3. Nc3 {[%clk 0:02:57]}  Nf6 {[%clk 0:02:57]} 4. cxd5 {[%clk 0:02:58]}  cxd5 {[%clk 0:02:56]} 5. g3 {[%clk 0:02:57]}  e6 {[%clk 0:02:56]} 6. Bg2 {[%clk 0:02:57]}  Be7 {[%clk 0:02:56]} 7. Nf3 {[%clk 0:02:58]}  O-O {[%clk 0:02:56]} 8. O-O {[%clk 0:02:59]}  a6 {[%clk 0:02:56]} 9. Rb1 {[%clk 0:02:59]}  Nc6 {[%clk 0:02:56]} 10. a3 {[%clk 0:02:58]}  b5 {[%clk 0:02:56]} 11. Re1 {[%clk 0:02:55]}  Bd7 {[%clk 0:02:56]} 12. e4 {[%clk 0:02:54]}  dxe4 {[%clk 0:02:56]} 13. Nxe4 {[%clk 0:02:55]}  Nxe4 {[%clk 0:02:56]} 14. Rxe4 {[%clk 0:02:56]}  Rc8 {[%clk 0:02:56]} 15. Re2 {[%clk 0:02:42]}  Bf6 {[%clk 0:02:55]} 16. h4 {[%clk 0:02:32]}  Qe7 {[%clk 0:02:46]} 17. d5 {[%clk 0:02:29]}  Na5 {[%clk 0:02:45]} 18. d6 {[%clk 0:02:29]}  Qd8 {[%clk 0:02:44]} 19. Bg5 {[%clk 0:02:29]}  h6 {[%clk 0:02:42]} 20. Bxf6 {[%clk 0:02:28]}  Qxf6 {[%clk 0:02:42]} 21. Ne5 {[%clk 0:02:29]}  Rfd8 {[%clk 0:02:40]} 22. Qd3 {[%clk 0:02:19]}  Nc4 {[%clk 0:02:39]} 23. Ng4 {[%clk 0:02:18]}  Qf5 {[%clk 0:02:31]} 24. Qxf5 {[%clk 0:02:11]}  exf5 {[%clk 0:02:31]} 25. Ne5 {[%clk 0:02:12]}  Nxd6 {[%clk 0:02:30]} 26. Rd1 {[%clk 0:02:07]}  Be6 {[%clk 0:02:30]} 27. Red2 {[%clk 0:02:07]}  Rc5 {[%clk 0:02:18]} 28. Nf3 {[%clk 0:01:56]}  Rc6 {[%clk 0:02:07]} 29. Ne5 {[%clk 0:01:56]}  Rc5 {[%clk 0:02:06]} 30. Nc6 {[%clk 0:01:56]}  Rc8 {[%clk 0:01:55]} 31. Rxd6 {[%clk 0:01:36]}  Kh7 {[%clk 0:01:46]} 32. Nd4 {[%clk 0:01:35]}  Re5 {[%clk 0:01:38]} 33. Nxe6 {[%clk 0:01:35]}  fxe6 {[%clk 0:01:37]} 34. Rxa6 {[%clk 0:01:35]}  Rc2 {[%clk 0:01:36]} 35. h5 {[%clk 0:01:24]}  Ree2 {[%clk 0:01:34]} 36. Bf1 {[%clk 0:01:23]}  Rxf2 {[%clk 0:01:33]} 37. Ra8 {[%clk 0:01:23]}  Rxb2 {[%clk 0:01:32]} 38. Rdd8 {[%clk 0:01:22]}  g5 {[%clk 0:01:29]} 39. Ra7# {[%clk 0:01:21]} 1-0


[Site "https://www.chess.com"]

[Event "Titled Tuesday Blitz March 22 Late 2022"]
[White "Bryakin, Mikhail"]
[Black "Petesch, Gabriel"]
[WhiteFideId "4165314"]
[BlackFideId "2032465"]
[WhiteElo "2417"]
[BlackElo "2374"]
[Result "1-0"]
[Round "06"]
[TimeControl "180+1"]
[Date "2022.03.22"]
[WhiteClock "0:00:06"]
[BlackClock "0:00:03"]

1. e4 {[%clk 0:03:00]}  d6 {[%clk 0:02:59]} 2. d4 {[%clk 0:02:57]}  g6 {[%clk 0:03:00]} 3. Nc3 {[%clk 0:02:56]}  c6 {[%clk 0:03:01]} 4. a4 {[%clk 0:02:56]}  Bg7 {[%clk 0:03:02]} 5. Nf3 {[%clk 0:02:56]}  a5 {[%clk 0:03:03]} 6. h3 {[%clk 0:02:56]}  Nf6 {[%clk 0:03:02]} 7. Be2 {[%clk 0:02:56]}  O-O {[%clk 0:03:02]} 8. O-O {[%clk 0:02:57]}  Qc7 {[%clk 0:03:01]} 9. Be3 {[%clk 0:02:57]}  e5 {[%clk 0:03:01]} 10. d5 {[%clk 0:02:54]}  Nbd7 {[%clk 0:03:00]} 11. Nd2 {[%clk 0:02:53]}  Rd8 {[%clk 0:02:45]} 12. Nc4 {[%clk 0:02:43]}  Ne8 {[%clk 0:02:01]} 13. Qd2 {[%clk 0:02:18]}  Nf8 {[%clk 0:01:54]} 14. Nb6 {[%clk 0:01:57]}  Rb8 {[%clk 0:01:42]} 15. Rad1 {[%clk 0:01:56]}  Nd7 {[%clk 0:01:27]} 16. Nxd7 {[%clk 0:01:45]}  Bxd7 {[%clk 0:01:17]} 17. b3 {[%clk 0:01:46]}  f5 {[%clk 0:01:04]} 18. f3 {[%clk 0:01:19]}  Nf6 {[%clk 0:00:56]} 19. g4 {[%clk 0:01:04]}  f4 {[%clk 0:00:52]} 20. Bf2 {[%clk 0:00:49]}  Bf8 {[%clk 0:00:32]} 21. Bc4 {[%clk 0:00:35]}  Kg7 {[%clk 0:00:30]} 22. h4 {[%clk 0:00:34]}  b5 {[%clk 0:00:23]} 23. dxc6 {[%clk 0:00:30]}  bxc4 {[%clk 0:00:23]} 24. cxd7 {[%clk 0:00:28]}  cxb3 {[%clk 0:00:20]} 25. cxb3 {[%clk 0:00:28]}  Qxd7 {[%clk 0:00:20]} 26. Nb5 {[%clk 0:00:27]}  d5 {[%clk 0:00:19]} 27. g5 {[%clk 0:00:25]}  Nh5 {[%clk 0:00:16]} 28. Qxd5 {[%clk 0:00:23]}  Qh3 {[%clk 0:00:13]} 29. Qxe5+ {[%clk 0:00:23]}  Kg8 {[%clk 0:00:13]} 30. Rxd8 {[%clk 0:00:11]}  Rxd8 {[%clk 0:00:14]} 31. Nc7 {[%clk 0:00:12]}  Ng3 {[%clk 0:00:13]} 32. Qe6+ {[%clk 0:00:12]}  Qxe6 {[%clk 0:00:13]} 33. Nxe6 {[%clk 0:00:13]}  Re8 {[%clk 0:00:11]} 34. Bxg3 {[%clk 0:00:10]}  Rxe6 {[%clk 0:00:11]} 35. Bxf4 {[%clk 0:00:10]}  Rb6 {[%clk 0:00:11]} 36. Rb1 {[%clk 0:00:09]}  Bc5+ {[%clk 0:00:12]} 37. Kg2 {[%clk 0:00:10]}  Kf7 {[%clk 0:00:12]} 38. Kg3 {[%clk 0:00:10]}  Ke6 {[%clk 0:00:12]} 39. Kg4 {[%clk 0:00:10]}  Rb4 {[%clk 0:00:11]} 40. h5 {[%clk 0:00:10]}  Rb7 {[%clk 0:00:10]} 41. h6 {[%clk 0:00:10]}  Ba3 {[%clk 0:00:08]} 42. Bd2 {[%clk 0:00:09]}  Ra7 {[%clk 0:00:07]} 43. Bc3 {[%clk 0:00:07]}  Bd6 {[%clk 0:00:06]} 44. Rd1 {[%clk 0:00:07]}  Rf7 {[%clk 0:00:06]} 45. Bd2 {[%clk 0:00:07]}  Rb7 {[%clk 0:00:05]} 46. Bxa5 {[%clk 0:00:07]}  Rxb3 {[%clk 0:00:05]} 47. f4 {[%clk 0:00:06]}  Be7 {[%clk 0:00:02]} 48. f5+ {[%clk 0:00:06]}  gxf5+ {[%clk 0:00:03]} 49. exf5+ {[%clk 0:00:07]}  Kf7 {[%clk 0:00:04]} 50. Rd7 {[%clk 0:00:06]}  Ra3 {[%clk 0:00:03]} 51. Rxe7+ {[%clk 0:00:06]}  Kxe7 {[%clk 0:00:03]} 52. Bb4+ {[%clk 0:00:06]} 1-0


[Site "https://www.chess.com"]

[Event "Titled Tuesday Blitz March 22 Late 2022"]
[White "Cappai, Davide"]
[Black "Burke, Paul"]
[WhiteFideId "813338"]
[BlackFideId "2605767"]
[WhiteElo "2295"]
[BlackElo "1926"]
[Result "1-0"]
[Round "06"]
[TimeControl "180+1"]
[Date "2022.03.22"]
[WhiteClock "0:02:39"]
[BlackClock "0:00:10"]

1. b3 {[%clk 0:03:00]}  a6 {[%clk 0:02:59]} 2. Bb2 {[%clk 0:03:01]}  d6 {[%clk 0:02:59]} 3. f4 {[%clk 0:03:02]}  Nd7 {[%clk 0:02:58]} 4. Nf3 {[%clk 0:03:02]}  Ngf6 {[%clk 0:02:59]} 5. g3 {[%clk 0:03:02]}  g6 {[%clk 0:02:58]} 6. Bg2 {[%clk 0:03:02]}  Bg7 {[%clk 0:02:59]} 7. O-O {[%clk 0:03:03]}  O-O {[%clk 0:02:59]} 8. d3 {[%clk 0:03:04]}  Rb8 {[%clk 0:02:58]} 9. e4 {[%clk 0:03:04]}  b5 {[%clk 0:02:57]} 10. a4 {[%clk 0:03:04]}  b4 {[%clk 0:02:56]} 11. Nbd2 {[%clk 0:03:05]}  Bb7 {[%clk 0:02:56]} 12. Qe2 {[%clk 0:03:05]}  h6 {[%clk 0:02:14]} 13. h3 {[%clk 0:03:04]}  Kh7 {[%clk 0:02:13]} 14. g4 {[%clk 0:03:01]}  Rh8 {[%clk 0:02:10]} 15. Rf2 {[%clk 0:03:01]}  Kg8 {[%clk 0:02:09]} 16. Nf1 {[%clk 0:03:01]}  e6 {[%clk 0:01:52]} 17. Ne3 {[%clk 0:02:55]}  c5 {[%clk 0:01:48]} 18. Raf1 {[%clk 0:02:54]}  Qc7 {[%clk 0:01:45]} 19. f5 {[%clk 0:02:50]}  e5 {[%clk 0:01:39]} 20. fxg6 {[%clk 0:02:48]}  fxg6 {[%clk 0:01:39]} 21. Nh4 {[%clk 0:02:49]}  Nf8 {[%clk 0:00:58]} 22. Rxf6 {[%clk 0:02:46]}  Bxf6 {[%clk 0:00:57]} 23. Rxf6 {[%clk 0:02:46]}  Kg7 {[%clk 0:00:45]} 24. Qf2 {[%clk 0:02:46]}  Re8 {[%clk 0:00:28]} 25. Nd5 {[%clk 0:02:45]}  Bxd5 {[%clk 0:00:26]} 26. exd5 {[%clk 0:02:45]}  Qe7 {[%clk 0:00:21]} 27. Rxg6+ {[%clk 0:02:38]}  Nxg6 {[%clk 0:00:19]} 28. Nf5+ {[%clk 0:02:39]}  Kg8 {[%clk 0:00:10]} 29. Nxe7+ {[%clk 0:02:39]}  Rxe7 {[%clk 0:00:10]} 30. Qf6 {[%clk 0:02:39]} 1-0


[Site "https://www.chess.com"]

[Event "Titled Tuesday Blitz March 22 Late 2022"]
[White "Clawitter, Craig"]
[Black "Martin Carmona, Gaston Manuel"]
[WhiteFideId "2023105"]
[BlackFideId "22284567"]
[WhiteElo "2217"]
[BlackElo "2161"]
[Result "0-1"]
[Round "06"]
[TimeControl "180+1"]
[Date "2022.03.22"]
[WhiteClock "0:00:01"]
[BlackClock "0:00:56"]

1. e4 {[%clk 0:03:00]}  e6 {[%clk 0:03:00]} 2. d4 {[%clk 0:03:00]}  d5 {[%clk 0:03:00]} 3. e5 {[%clk 0:03:01]}  c5 {[%clk 0:02:57]} 4. c3 {[%clk 0:03:01]}  Qb6 {[%clk 0:02:56]} 5. Nf3 {[%clk 0:03:01]}  Nc6 {[%clk 0:02:51]} 6. a3 {[%clk 0:03:01]}  c4 {[%clk 0:02:49]} 7. Nbd2 {[%clk 0:02:59]}  Na5 {[%clk 0:02:46]} 8. g3 {[%clk 0:02:59]}  Bd7 {[%clk 0:02:44]} 9. Bg2 {[%clk 0:02:59]}  O-O-O {[%clk 0:02:40]} 10. O-O {[%clk 0:02:57]}  Kb8 {[%clk 0:02:40]} 11. Rb1 {[%clk 0:02:51]}  h6 {[%clk 0:02:22]} 12. h4 {[%clk 0:02:36]}  Ne7 {[%clk 0:02:21]} 13. b4 {[%clk 0:02:26]}  cxb3 {[%clk 0:02:19]} 14. Nxb3 {[%clk 0:02:26]}  Ba4 {[%clk 0:02:11]} 15. Nfd2 {[%clk 0:01:37]}  Nxb3 {[%clk 0:01:54]} 16. Nxb3 {[%clk 0:01:35]}  Nc6 {[%clk 0:01:54]} 17. Re1 {[%clk 0:00:37]}  Na5 {[%clk 0:01:30]} 18. Nxa5 {[%clk 0:00:37]}  Bxd1 {[%clk 0:01:29]} 19. Rxb6 {[%clk 0:00:36]}  axb6 {[%clk 0:01:30]} 20. Nxb7 {[%clk 0:00:33]}  Kxb7 {[%clk 0:01:29]} 21. Rxd1 {[%clk 0:00:33]}  b5 {[%clk 0:01:23]} 22. Rd3 {[%clk 0:00:21]}  Be7 {[%clk 0:01:23]} 23. Rf3 {[%clk 0:00:21]}  Rhf8 {[%clk 0:01:23]} 24. h5 {[%clk 0:00:21]}  Ra8 {[%clk 0:01:22]} 25. g4 {[%clk 0:00:14]}  Bxa3 {[%clk 0:01:22]} 26. Bxa3 {[%clk 0:00:13]}  Rxa3 {[%clk 0:01:23]} 27. g5 {[%clk 0:00:14]}  hxg5 {[%clk 0:01:15]} 28. Rg3 {[%clk 0:00:12]}  b4 {[%clk 0:01:11]} 29. cxb4 {[%clk 0:00:12]}  Rxg3 {[%clk 0:01:11]} 30. fxg3 {[%clk 0:00:13]}  Kc6 {[%clk 0:01:06]} 31. Bf1 {[%clk 0:00:11]}  Rb8 {[%clk 0:01:07]} 32. b5+ {[%clk 0:00:11]}  Kb6 {[%clk 0:01:04]} 33. Kf2 {[%clk 0:00:11]}  Rc8 {[%clk 0:01:04]} 34. Kf3 {[%clk 0:00:10]}  Rc1 {[%clk 0:01:03]} 35. Be2 {[%clk 0:00:08]}  Re1 {[%clk 0:01:00]} 36. Kf2 {[%clk 0:00:08]}  Rh1 {[%clk 0:00:59]} 37. Ke3 {[%clk 0:00:05]}  Rg1 {[%clk 0:00:56]} 38. Kf2 {[%clk 0:00:05]}  Rb1 {[%clk 0:00:56]} 39. Kf3 {[%clk 0:00:04]}  Rb4 {[%clk 0:00:56]} 40. Ke3 {[%clk 0:00:01]}  Rb3+ {[%clk 0:00:56]} 41. Bd3 {[%clk 0:00:01]}  Ka5 {[%clk 0:00:56]} 0-1


[Site "https://www.chess.com"]

[Event "Titled Tuesday Blitz March 22 Late 2022"]
[White "Costachi, Mihnea"]
[Black "Deac, Bogdan-Daniel"]
[WhiteFideId "1217518"]
[BlackFideId "1226380"]
[WhiteElo "2464"]
[BlackElo "2646"]
[Result "0-1"]
[Round "06"]
[TimeControl "180+1"]
[Date "2022.03.22"]
[WhiteClock "0:00:03"]
[BlackClock "0:00:12"]

1. b3 {[%clk 0:03:00]}  d5 {[%clk 0:02:58]} 2. Bb2 {[%clk 0:03:00]}  c5 {[%clk 0:02:59]} 3. Nf3 {[%clk 0:02:58]}  Nc6 {[%clk 0:02:57]} 4. g3 {[%clk 0:02:58]}  f6 {[%clk 0:02:55]} 5. Bg2 {[%clk 0:02:56]}  e5 {[%clk 0:02:55]} 6. d3 {[%clk 0:02:56]}  Be6 {[%clk 0:02:55]} 7. O-O {[%clk 0:02:57]}  Qd7 {[%clk 0:02:55]} 8. Nbd2 {[%clk 0:02:57]}  Nge7 {[%clk 0:02:55]} 9. e4 {[%clk 0:02:55]}  d4 {[%clk 0:02:53]} 10. a4 {[%clk 0:02:46]}  g5 {[%clk 0:02:53]} 11. Nc4 {[%clk 0:02:45]}  Ng6 {[%clk 0:02:52]} 12. Ne1 {[%clk 0:02:39]}  h5 {[%clk 0:02:52]} 13. f3 {[%clk 0:01:51]}  h4 {[%clk 0:02:47]} 14. g4 {[%clk 0:01:49]}  h3 {[%clk 0:02:45]} 15. Bh1 {[%clk 0:01:49]}  Nf4 {[%clk 0:02:45]} 16. Bc1 {[%clk 0:01:46]}  Kf7 {[%clk 0:02:25]} 17. Bxf4 {[%clk 0:01:36]}  exf4 {[%clk 0:02:24]} 18. Qe2 {[%clk 0:01:24]}  Bd6 {[%clk 0:02:12]} 19. Kf2 {[%clk 0:01:11]}  Bc7 {[%clk 0:02:08]} 20. Rg1 {[%clk 0:01:08]}  b6 {[%clk 0:02:06]} 21. Qd2 {[%clk 0:01:04]}  Rhd8 {[%clk 0:01:55]} 22. Qe2 {[%clk 0:00:40]}  Rab8 {[%clk 0:01:50]} 23. Qf1 {[%clk 0:00:41]}  Rh8 {[%clk 0:01:49]} 24. Qe2 {[%clk 0:00:41]}  a6 {[%clk 0:01:47]} 25. Qd2 {[%clk 0:00:35]}  b5 {[%clk 0:01:45]} 26. Nb2 {[%clk 0:00:35]}  Ba5 {[%clk 0:01:41]} 27. Qc1 {[%clk 0:00:34]}  Bc3 {[%clk 0:01:39]} 28. Rb1 {[%clk 0:00:30]}  Ne5 {[%clk 0:01:35]} 29. Nd1 {[%clk 0:00:28]}  bxa4 {[%clk 0:01:34]} 30. bxa4 {[%clk 0:00:24]}  Qd6 {[%clk 0:00:54]} 31. Rxb8 {[%clk 0:00:19]}  Rxb8 {[%clk 0:00:53]} 32. Ke2 {[%clk 0:00:15]}  Qb6 {[%clk 0:00:45]} 33. Qa3 {[%clk 0:00:15]}  Bb4 {[%clk 0:00:40]} 34. Qb2 {[%clk 0:00:13]}  Qc7 {[%clk 0:00:36]} 35. Qc1 {[%clk 0:00:11]}  Qa5 {[%clk 0:00:36]} 36. Nf2 {[%clk 0:00:10]}  Rh8 {[%clk 0:00:24]} 37. Qa1 {[%clk 0:00:10]}  Bc3 {[%clk 0:00:22]} 38. Qa3 {[%clk 0:00:10]}  Rb8 {[%clk 0:00:18]} 39. Qc1 {[%clk 0:00:07]}  Qxa4 {[%clk 0:00:15]} 40. Nxh3 {[%clk 0:00:07]}  Qa2 {[%clk 0:00:14]} 41. Nf2 {[%clk 0:00:02]}  Rb1 {[%clk 0:00:14]} 42. Qxb1 {[%clk 0:00:03]}  Qxb1 {[%clk 0:00:14]} 43. h4 {[%clk 0:00:03]}  Bxe1 {[%clk 0:00:13]} 44. Rxe1 {[%clk 0:00:03]}  Qxc2+ {[%clk 0:00:14]} 45. Kf1 {[%clk 0:00:03]}  Nxd3 {[%clk 0:00:14]} 46. Re2 {[%clk 0:00:02]}  Qc1+ {[%clk 0:00:13]} 47. Kg2 {[%clk 0:00:03]}  Nxf2 {[%clk 0:00:12]} 48. Kxf2 {[%clk 0:00:03]}  d3 {[%clk 0:00:13]} 49. Re1 {[%clk 0:00:03]}  d2 {[%clk 0:00:12]} 0-1


[Site "https://www.chess.com"]

[Event "Titled Tuesday Blitz March 22 Late 2022"]
[White "Demchenko, Anton"]
[Black "Jaferian, Koosha"]
[WhiteFideId "4160258"]
[BlackFideId "12507440"]
[WhiteElo "2539"]
[BlackElo "2030"]
[Result "0-1"]
[Round "06"]
[TimeControl "180+1"]
[Date "2022.03.22"]
[WhiteClock "0:00:01"]
[BlackClock "0:00:14"]

1. e4 {[%clk 0:03:00]}  c6 {[%clk 0:03:00]} 2. d4 {[%clk 0:02:56]}  d5 {[%clk 0:03:00]} 3. e5 {[%clk 0:02:57]}  Bf5 {[%clk 0:03:00]} 4. Nf3 {[%clk 0:02:57]}  e6 {[%clk 0:03:01]} 5. Be2 {[%clk 0:02:57]}  c5 {[%clk 0:03:00]} 6. c3 {[%clk 0:02:58]}  Nc6 {[%clk 0:03:00]} 7. O-O {[%clk 0:02:58]}  cxd4 {[%clk 0:02:59]} 8. Nxd4 {[%clk 0:02:56]}  Nge7 {[%clk 0:02:59]} 9. Nxf5 {[%clk 0:02:55]}  Nxf5 {[%clk 0:03:00]} 10. Bd3 {[%clk 0:02:56]}  g6 {[%clk 0:02:58]} 11. Qe2 {[%clk 0:02:41]}  Bg7 {[%clk 0:02:58]} 12. f4 {[%clk 0:02:42]}  O-O {[%clk 0:02:58]} 13. Nd2 {[%clk 0:02:42]}  f6 {[%clk 0:02:51]} 14. exf6 {[%clk 0:02:42]}  Qxf6 {[%clk 0:02:52]} 15. Nf3 {[%clk 0:02:43]}  Rae8 {[%clk 0:02:45]} 16. Bb5 {[%clk 0:02:12]}  Nd6 {[%clk 0:02:24]} 17. Ba4 {[%clk 0:02:09]}  Ne4 {[%clk 0:02:16]} 18. Be3 {[%clk 0:02:08]}  a6 {[%clk 0:02:08]} 19. Bxc6 {[%clk 0:02:02]}  bxc6 {[%clk 0:02:09]} 20. Qxa6 {[%clk 0:02:02]}  c5 {[%clk 0:02:03]} 21. Qe2 {[%clk 0:01:57]}  Rb8 {[%clk 0:01:59]} 22. Rae1 {[%clk 0:01:37]}  Rb7 {[%clk 0:01:53]} 23. Ng5 {[%clk 0:01:37]}  Nxg5 {[%clk 0:01:14]} 24. fxg5 {[%clk 0:01:37]}  Qe7 {[%clk 0:01:10]} 25. Rxf8+ {[%clk 0:01:28]}  Qxf8 {[%clk 0:01:07]} 26. Bf2 {[%clk 0:01:23]}  e5 {[%clk 0:01:04]} 27. c4 {[%clk 0:01:05]}  d4 {[%clk 0:00:59]} 28. b3 {[%clk 0:01:05]}  Qf5 {[%clk 0:00:54]} 29. g4 {[%clk 0:00:36]}  Qxg5 {[%clk 0:00:39]} 30. Qe4 {[%clk 0:00:36]}  Qe7 {[%clk 0:00:35]} 31. Bg3 {[%clk 0:00:35]}  Ra7 {[%clk 0:00:32]} 32. Re2 {[%clk 0:00:35]}  Rd7 {[%clk 0:00:29]} 33. Qd3 {[%clk 0:00:26]}  Qe6 {[%clk 0:00:26]} 34. h3 {[%clk 0:00:24]}  Re7 {[%clk 0:00:27]} 35. Qe4 {[%clk 0:00:24]}  h6 {[%clk 0:00:26]} 36. Kg2 {[%clk 0:00:23]}  Kh7 {[%clk 0:00:27]} 37. h4 {[%clk 0:00:18]}  Kh8 {[%clk 0:00:25]} 38. Rf2 {[%clk 0:00:18]}  Rd7 {[%clk 0:00:23]} 39. a4 {[%clk 0:00:15]}  d3 {[%clk 0:00:19]} 40. a5 {[%clk 0:00:08]}  d2 {[%clk 0:00:17]} 41. Rf1 {[%clk 0:00:02]}  d1=Q {[%clk 0:00:17]} 42. Rxd1 {[%clk 0:00:02]}  Rxd1 {[%clk 0:00:18]} 43. Bf2 {[%clk 0:00:01]}  Rd8 {[%clk 0:00:14]} 0-1


[Site "https://www.chess.com"]